bitfinex/quotes_ETHUSD_20251107
["timestamp","ask_amount","ask_price","bid_price","bid_amount"]
[1762533645906,4.86824279,3310.9,3310.8,0.50223894]
[1762533646106,4.68554279,3310.9,3310.8,0.50223894]
[1762533646309,4.28003879,3310.9,3310.8,0.50223894]
[1762533646496,1.259712,3310.9,3310.8,0.50223894]
[1762533646694,0.405504,3311.5,3310.6,0.49875911]
[1762533646896,1.259712,3311.1,3310.6,0.49875911]
[1762533647160,1.259712,3311.1,3310.7,0.4978]
[1762533647313,1.259712,3311.1,3311.0,0.48]
[1762533647937,1.259712,3311.0,3310.8,0.40171378]
[1762533648121,9.63718166,3312.7,3310.8,0.40171378]
[1762533648122,3.01957204,3311.8,3311.2,3.02004901]
[1762533648431,0.002,3312.1,3311.0,3.50018454]
[1762533648432,3.0197428,3311.6,3311.0,3.50018454]
[1762533648607,1.259712,3311.7,3311.1,0.53681845]
[1762533648812,0.002,3312.1,3311.3,0.49788162]
[1762533649108,0.002,3312.1,3311.5,3.01977717]
[1762533649424,0.002,3312.1,3311.6,3.01966645]
[1762533649755,0.002,3312.1,3312.0,0.48]
[1762533649970,0.002,3312.1,3311.5,0.4978]
[1762533650133,3.01950321,3311.9,3311.5,0.89934466]
[1762533650326,0.002,3312.1,3311.5,0.89934466]
[1762533650327,3.01940515,3312.0,3311.5,0.4978]
[1762533650528,1.259712,3312.0,3311.5,3.51752623]
[1762533650728,0.002,3312.1,3312.0,3.01932367]
[1762533651035,0.002,3312.1,3312.0,0.48]
[1762533651375,0.002,3312.1,3311.8,0.49824257]
[1762533651376,3.01941483,3311.9,3311.8,0.49824257]
[1762533651521,5.54899016,3311.9,3311.8,0.49824257]
[1762533651722,6.03029016,3311.9,3311.8,0.49824257]
[1762533652163,5.54899016,3311.9,3311.8,0.49824257]
[1762533652334,6.03029016,3311.9,3311.8,0.49824257]
[1762533652950,0.405504,3311.7,3310.8,3.02041229]
[1762533653261,0.1875,3311.9,3310.8,0.30204123]
[1762533653432,3.02001631,3311.3,3310.7,3.02045144]
[1762533653635,1.259712,3311.5,3310.9,3.02024093]
[1762533653869,3.01961613,3311.7,3311.2,0.1868]
[1762533654160,1.259712,3311.4,3311.2,0.1868]
[1762533654540,1.259712,3311.5,3311.2,0.1868]
[1762533654750,0.405504,3311.8,3311.2,0.1868]
[1762533654954,4.27940036,3311.6,3311.5,0.50029726]
[1762533656467,1.259712,3311.6,3311.5,0.50029726]
[1762533657070,0.002,3312.1,3311.5,0.9778]
[1762533657299,0.002,3312.1,3312.0,3.49932367]
[1762533657498,0.002,3312.1,3312.0,4.64899931]
[1762533658264,0.002,3312.1,3312.0,1.62967564]
[1762533658598,0.002,3312.1,3312.0,4.67919254]
[1762533658995,0.002,3312.5,3312.1,3.51964179]
[1762533659197,0.002,3312.5,3312.4,3.49895906]
[1762533659509,3.02091492,3312.5,3312.1,0.50041275]
[1762533659658,0.002,3312.5,3312.1,0.50041275]
[1762533660062,0.002,3312.5,3312.4,0.48]
[1762533660294,0.002,3312.5,3312.1,0.50041275]
[1762533660295,0.0012,3312.5,3312.1,0.50041275]
[1762533660574,0.0012,3312.5,3312.4,0.48]
[1762533660894,0.0012,3312.5,3312.1,0.50041275]
[1762533661079,3.01904281,3312.4,3311.7,0.4978]
[1762533661290,0.0012,3312.5,3310.0,6.80177847]
[1762533661453,3.0190502,3312.3,3310.6,3.02053818]
[1762533661657,1.665216,3312.1,3310.5,0.4978]
[1762533661854,0.0012,3312.5,3310.9,0.4978]
[1762533662321,0.405504,3312.0,3310.5,0.454]
[1762533662516,3.01941483,3311.9,3310.7,3.02042244]
[1762533662809,1.259712,3311.2,3310.6,3.02056026]
[1762533663104,3.02012704,3311.2,3311.1,0.49962287]
[1762533663461,4.27976515,3311.2,3311.1,0.49962287]
[1762533663984,5.41336915,3311.2,3311.1,0.49962287]
[1762533664169,6.29073062,3311.2,3311.1,0.49962287]
[1762533664369,4.96246915,3311.2,3311.1,0.49962287]
[1762533664559,5.41336915,3311.2,3311.1,0.49962287]
[1762533664786,1.259712,3311.2,3311.1,0.49962287]
[1762533664990,1.259712,3311.2,3311.1,0.69002287]
[1762533665313,1.259712,3311.2,3311.1,0.6674]
[1762533665497,1.259712,3311.1,3311.0,0.49945572]
[1762533665698,0.4538,3312.5,3311.3,3.01987878]
[1762533665894,0.0012,3312.5,3311.3,0.30198788]
[1762533666100,0.0012,3312.5,3311.1,0.1904]
[1762533666326,0.0012,3312.5,3312.0,3.01925734]
[1762533666622,0.0012,3312.5,3312.1,0.03019232]
[1762533666788,0.0012,3312.5,3312.2,3.01914135]
[1762533667126,0.0012,3312.5,3311.5,0.454]
[1762533667426,0.0012,3312.5,3312.4,0.49914941]
[1762533668426,3.44802826,3312.5,3312.4,0.49914941]
[1762533668638,5.56584426,3312.5,3312.4,0.49914941]
[1762533669239,3.0193524,3312.0,3311.8,0.49893389]
[1762533669438,5.56584426,3312.5,3311.8,0.49893389]
[1762533669439,3.01941483,3311.9,3311.8,0.49893389]
[1762533670094,3.61841883,3311.9,3311.8,0.49893389]
[1762533670315,6.12047535,3311.9,3311.8,0.49893389]
[1762533671274,2.52244178,3311.3,3310.8,0.001]
[1762533671483,1.259712,3311.8,3310.8,0.001]
[1762533671484,4.27930205,3311.8,3310.8,0.001]
[1762533671631,3.02030359,3311.0,3310.8,0.001]
[1762533671826,1.259712,3311.7,3310.8,0.001]
[1762533671827,3.02032679,3310.9,3310.8,0.001]
[1762533672030,4.47353879,3310.9,3310.8,0.001]
[1762533672840,4.28003879,3310.9,3310.8,0.001]
[1762533673158,1.259712,3310.9,3310.8,0.001]
[1762533673333,3.78236159,3310.9,3310.8,0.001]
[1762533673725,3.97586159,3310.9,3310.8,0.001]
[1762533673926,3.78236159,3310.9,3310.8,0.001]
[1762533674565,5.43372451,3310.9,3310.8,0.001]
[1762533675422,3.54213079,3310.9,3310.8,0.001]
[1762533675622,3.02032679,3310.9,3310.8,0.001]
[1762533675828,3.54543079,3310.9,3310.8,0.001]
[1762533676037,3.02032679,3310.9,3310.8,0.001]
[1762533677686,2.52135904,3310.9,3310.8,0.001]
[1762533678436,3.39498885,3310.9,3310.8,0.001]
[1762533678855,3.12036304,3310.9,3310.8,0.001]
[1762533679059,2.52135904,3310.9,3310.8,0.001]
[1762533679654,3.02032679,3310.9,3310.8,0.001]
[1762533680741,3.02032679,3310.9,3310.8,0.478]
[1762533681337,3.02032679,3310.9,3310.8,0.001]
[1762533681673,2.52104567,3310.9,3310.8,0.001]
[1762533682082,0.405504,3311.5,3310.8,0.478]
[1762533682375,3.02032679,3310.9,3310.8,0.001]
[1762533682540,1.259712,3311.0,3310.8,0.001]
[1762533682739,3.01964779,3311.7,3310.9,3.95130207]
[1762533682939,3.01914135,3312.2,3311.4,0.477]
[1762533683139,1.259712,3311.7,3311.6,0.6674]
[1762533683379,4.27915265,3311.9,3311.6,0.6674]
[1762533683583,3.02028691,3312.3,3311.6,0.6674]
[1762533683789,1.259712,3312.0,3311.8,0.49934874]
[1762533684085,3.01941483,3311.9,3311.8,0.49934874]
[1762533684271,3.32921483,3311.9,3311.8,0.49934874]
[1762533684787,3.01941483,3311.9,3311.8,0.49934874]
[1762533684959,6.17527079,3311.9,3311.8,0.49934874]
[1762533685785,3.02005315,3311.2,3311.1,0.1904]
[1762533686114,3.02032679,3310.9,3310.8,0.001]
[1762533686795,4.28003879,3310.9,3310.8,0.001]
[1762533687167,1.259712,3310.9,3310.8,0.932]
[1762533687614,4.27955249,3311.5,3310.9,3.0202555]
[1762533687914,0.405504,3312.1,3311.2,0.50139567]
[1762533688083,4.27967394,3311.3,3311.2,0.50139567]
[1762533689565,1.259712,3311.3,3311.2,0.50139567]
[1762533689765,1.259712,3311.2,3311.1,0.50005893]
[1762533690165,1.259712,3311.6,3311.1,0.50005893]
[1762533690367,4.27976515,3311.2,3311.1,0.50005893]
[1762533690786,4.39606515,3311.2,3311.1,0.50005893]
[1762533691004,4.27976515,3311.2,3311.1,0.50005893]
[1762533691783,1.259712,3311.2,3311.1,0.6674]
[1762533691992,1.259712,3311.2,3311.1,1.5400922]
[1762533692868,1.447412,3311.8,3311.1,1.0860922]
[1762533693072,1.259712,3311.3,3311.1,0.1904]
[1762533693272,3.02014436,3311.1,3311.0,0.49930004]
[1762533693672,4.27985636,3311.1,3311.0,0.49930004]
[1762533693987,3.78109639,3310.9,3310.8,0.001]
[1762533694301,4.28003879,3310.9,3310.8,0.001]
[1762533694606,1.259712,3310.9,3310.8,0.4687]
[1762533694904,4.28003879,3310.9,3310.8,0.4687]
[1762533695206,1.259712,3310.9,3310.8,0.9642]
[1762533695910,0.75810521,3310.9,3310.8,1.3626702]
[1762533696208,0.405504,3311.7,3310.8,0.9642]
[1762533696508,0.405504,3311.8,3310.9,0.4955]
[1762533696710,3.0200025,3311.3,3310.9,0.4955]
[1762533696875,3.01997352,3311.3,3310.9,0.4955]
[1762533697209,0.1877,3311.9,3311.2,0.6581]
[1762533697409,3.019904,3311.4,3311.2,0.6581]
[1762533697705,3.01959329,3311.8,3311.2,0.6581]
[1762533697908,0.0012,3312.3,3311.3,0.52569961]
[1762533698108,0.0012,3312.3,3311.5,0.50136841]
[1762533698309,0.0012,3312.3,3311.6,3.04983136]
[1762533698310,3.01920566,3312.2,3311.6,3.04983136]
[1762533698470,4.27929894,3311.8,3311.5,0.50136841]
[1762533698674,4.27940036,3311.6,3311.5,0.50136841]
[1762533699008,4.28003879,3310.9,3310.8,0.001]
[1762533699313,4.28003879,3310.9,3310.8,0.4687]
[1762533699487,4.28003879,3310.9,3310.8,0.001]
[1762533699692,1.259712,3310.9,3310.8,0.001]
[1762533699899,1.259712,3310.9,3310.8,0.4687]
[1762533700090,3.78011624,3310.9,3310.8,0.9642]
[1762533700611,3.02006201,3311.2,3310.8,0.9642]
[1762533700812,0.405504,3311.8,3311.0,0.4718]
[1762533701014,0.4715,3312.3,3311.1,0.662]
[1762533701176,3.01984809,3311.5,3311.1,0.1902]
[1762533701376,0.405504,3311.8,3310.8,0.001]
[1762533701581,3.02032679,3310.9,3310.8,0.001]
[1762533702001,3.71483079,3310.9,3310.8,0.001]
[1762533702368,3.68347482,3310.9,3310.8,0.001]
[1762533702476,6.19308714,3310.9,3310.8,0.001]
[1762533702897,5.7395285,3310.9,3310.8,0.001]
[1762533703427,5.4638285,3310.9,3310.8,0.001]
[1762533703576,5.7395285,3310.9,3310.8,0.001]
[1762533703782,3.02069173,3310.5,3310.4,0.001]
[1762533704101,5.1649815,3310.2,3310.1,0.50033941]
[1762533704308,12.60322465,3310.2,3310.1,1e-08]
[1762533704614,13.17992397,3310.2,3310.1,1e-08]
[1762533704988,13.54613001,3310.2,3310.1,1e-08]
[1762533705189,4.7822815,3310.2,3310.1,1e-08]
[1762533705919,5.2479815,3310.2,3310.1,1e-08]
[1762533706136,4.7814815,3310.2,3310.1,1e-08]
[1762533706340,1.259712,3309.7,3309.6,0.50017741]
[1762533706515,0.1948,3310.9,3309.6,0.50017741]
[1762533706843,3.02109063,3310.1,3309.7,0.4718]
[1762533707040,3.02102896,3310.2,3309.7,0.4718]
[1762533707239,3.02094715,3310.3,3309.8,0.4618]
[1762533707456,0.405504,3310.5,3309.6,0.50017741]
[1762533707751,3.02142188,3309.7,3309.6,0.50017741]
[1762533708348,0.405504,3310.3,3309.4,0.50223517]
[1762533708532,0.405504,3310.1,3309.4,0.50223517]
[1762533708709,1.259712,3310.2,3309.5,3.05173123]
[1762533709031,1.259712,3310.2,3309.4,0.96403517]
[1762533709032,4.27942382,3311.6,3310.3,3.02082012]
[1762533709233,0.1998,3311.9,3310.6,0.4718]
[1762533709554,0.1998,3311.9,3310.8,3.02041802]
[1762533709555,3.21922262,3311.9,3310.8,3.02041802]
[1762533709753,1.259712,3311.6,3310.9,3.02031097]
[1762533709909,0.005,3311.9,3310.2,0.3406]
[1762533709910,3.02004569,3311.3,3311.0,0.7638311]
[1762533710111,3.02020095,3311.1,3310.3,0.4618]
[1762533710330,3.02020095,3311.1,3310.7,0.49845434]
[1762533710533,3.02030588,3311.0,3310.7,0.49845434]
[1762533710857,3.0202449,3311.0,3310.7,0.96025434]
[1762533711141,3.02033572,3310.9,3310.7,0.96025434]
[1762533711308,3.02041802,3310.8,3310.7,0.49845434]
[1762533711508,4.28013002,3310.8,3310.7,0.49845434]
[1762533711704,1.259712,3310.8,3310.7,0.97025434]
[1762533711941,4.28013002,3310.8,3310.7,0.97025434]
[1762533712429,0.75794481,3310.8,3310.7,0.4718]
[1762533712639,0.75794481,3310.8,3310.7,0.9336]
[1762533713221,3.0198564,3311.5,3310.7,0.9336]
[1762533713516,0.4715,3312.3,3311.0,3.49197375]
[1762533713517,3.019506,3311.8,3311.0,3.49197375]
[1762533713738,0.005,3311.9,3311.4,0.1902]
[1762533713923,3.01952393,3311.8,3311.4,0.1902]
[1762533714123,3.01952393,3311.8,3311.4,0.652]
[1762533714328,3.01977955,3311.5,3311.4,0.1902]
[1762533714526,3.01971741,3311.6,3311.0,0.1902]
[1762533714845,0.002,3311.7,3311.0,0.652]
[1762533715238,0.002,3311.7,3311.6,0.4718]
[1762533715413,0.002,3311.7,3311.1,0.4618]
[1762533715606,0.002,3311.7,3311.2,3.48183838]
[1762533715807,1.261712,3311.7,3311.4,3.01982352]
[1762533716050,0.002,3311.7,3311.6,0.4718]
[1762533716553,0.002,3311.7,3311.6,4.45104208]
[1762533716848,0.002,3311.7,3311.6,1.43135372]
[1762533717053,0.002,3311.7,3311.6,4.48123896]
[1762533717206,0.002,3311.7,3311.6,5.20114498]
[1762533717652,0.002,3311.7,3311.6,5.23134186]
[1762533718018,0.0012,3312.3,3312.0,0.4718]
[1762533718212,0.0012,3312.3,3312.2,3.49094135]
[1762533718510,0.0012,3312.5,3312.3,0.49712433]
[1762533718712,0.0012,3312.5,3312.4,0.4718]
[1762533718912,0.0012,3312.5,3312.3,0.49712433]
[1762533719429,3.02007496,3312.5,3312.3,0.95892433]
[1762533719615,3.01895906,3312.4,3312.3,0.49712433]
[1762533719810,3.02008112,3312.5,3312.3,0.49712433]
[1762533720060,3.02013183,3312.5,3312.3,0.49712433]
[1762533720227,3.01895906,3312.4,3312.3,0.49712433]
[1762533720744,0.0012,3312.5,3312.1,0.5005355]
[1762533721047,3.01914135,3312.2,3312.1,0.5005355]
[1762533722511,3.01904816,3312.4,3311.8,0.49827799]
[1762533722512,3.01948625,3311.9,3311.8,0.49827799]
[1762533722707,1.259712,3312.3,3311.8,0.49827799]
[1762533722912,0.0012,3312.5,3311.9,0.4521]
[1762533723152,1.259712,3312.3,3311.9,0.4521]
[1762533723310,4.279859,3312.5,3312.4,0.4902]
[1762533723513,3.01905682,3312.3,3311.9,0.4521]
[1762533723708,0.0012,3312.5,3311.8,0.49827799]
[1762533723908,0.0012,3312.5,3311.8,0.95037799]
[1762533724114,0.0012,3312.5,3312.4,0.4902]
[1762533724315,0.0012,3312.5,3312.4,0.9423]
[1762533724560,0.0012,3312.5,3312.4,3.96125906]
[1762533724855,0.0012,3312.5,3312.4,5.15743254]
[1762533725055,0.0012,3312.5,3312.4,1.68637348]
[1762533725228,3.02006792,3312.5,3312.4,0.49814198]
[1762533725430,3.10546792,3312.5,3312.4,0.49814198]
[1762533725627,3.57516792,3312.5,3312.4,0.49814198]
[1762533725871,5.24038392,3312.5,3312.4,0.49814198]
[1762533726023,6.06649944,3312.5,3312.4,0.49814198]
[1762533726419,5.59679944,3312.5,3312.4,0.49814198]
[1762533726717,3.01922259,3312.2,3312.1,0.49863764]
[1762533727264,0.0012,3312.5,3312.4,3.01895906]
[1762533727560,0.005,3312.9,3312.7,3.01868566]
[1762533727717,0.1948,3315.0,3313.5,3.01786918]
[1762533727917,3.01681398,3314.8,3313.8,0.6754]
[1762533728128,3.0173432,3314.2,3313.8,0.6754]
[1762533728363,0.4736,3314.8,3313.5,0.1852]
[1762533728663,0.1013,3313.6,3312.6,0.1852]
[1762533728864,4.68417284,3313.5,3313.4,0.49909134]
[1762533729078,4.68317284,3313.5,3313.4,0.49909134]
[1762533730363,4.78447284,3313.5,3313.4,0.49909134]
[1762533730562,5.25427284,3313.5,3313.4,0.49909134]
[1762533730884,3.0182301,3313.2,3312.2,0.1852]
[1762533731171,3.01866055,3312.8,3312.2,0.6373]
[1762533731340,3.018296,3313.2,3312.3,0.0301905]
[1762533731544,3.01830307,3313.2,3312.7,0.4902]
[1762533731761,0.405504,3313.6,3312.7,0.84110451]
[1762533731924,3.01828559,3313.2,3312.7,0.9423]
[1762533732128,3.01823711,3313.2,3312.7,0.4902]
[1762533732335,1.259712,3313.5,3312.8,0.4521]
[1762533732539,1.665216,3313.7,3312.8,0.39610734]
[1762533732747,1.259712,3313.3,3312.3,0.4521]
[1762533732970,1.259712,3313.5,3312.6,0.49889122]
[1762533733177,3.01837473,3313.1,3312.6,0.49889122]
[1762533733477,0.405504,3313.4,3312.6,0.49889122]
[1762533735934,0.002,3313.2,3313.1,1.44348816]
[1762533736463,3.0202301,3313.2,3313.1,0.99138816]
[1762533736642,3.4734301,3313.2,3313.1,0.50118816]
[1762533736846,5.90930218,3313.2,3313.1,0.50118816]
[1762533737137,3.01864933,3312.8,3312.4,0.4531]
[1762533737358,3.01875159,3312.7,3312.4,0.4531]
[1762533737566,3.01886792,3312.5,3312.4,0.001]
[1762533737770,3.02025583,3313.2,3312.6,0.4902]
[1762533738083,0.002,3313.2,3312.6,0.4902]
[1762533738301,0.002,3313.2,3313.1,0.4902]
[1762533738736,0.002,3313.2,3313.1,0.9423]
[1762533739061,0.002,3313.2,3313.1,0.49972595]
[1762533739251,0.002,3313.2,3313.1,1.44202595]
[1762533739448,0.002,3313.2,3313.1,4.90640009]
[1762533740073,0.002,3313.6,3313.5,3.01795684]
[1762533740273,0.002,3313.6,3313.5,3.50815684]
[1762533740458,0.002,3313.6,3313.5,3.96025684]
[1762533741150,0.0062,3313.9,3313.6,3.51761081]
[1762533741357,0.0062,3313.9,3313.8,0.4902]
[1762533741859,0.0062,3313.9,3313.6,0.49976565]
[1762533742063,3.02387956,3313.9,3313.6,0.95186565]
[1762533742345,3.02387956,3313.9,3313.8,0.4902]
[1762533742346,0.0062,3313.9,3313.8,0.4902]
[1762533742546,0.0062,3313.9,3313.6,0.95186565]
[1762533742547,0.0062,3313.9,3313.6,0.49976565]
[1762533742751,3.01777469,3313.7,3313.6,0.49976565]
[1762533742974,3.02382611,3313.9,3313.6,0.49976565]
[1762533743178,0.0062,3313.9,3313.4,0.49996696]
[1762533743384,0.0062,3313.9,3313.8,3.50788362]
[1762533743693,0.0062,3313.9,3313.8,3.90388198]
[1762533743894,0.0062,3313.9,3313.8,4.38615881]
[1762533744198,0.0062,3313.9,3313.8,4.35598198]
[1762533744972,0.005,3314.9,3314.8,3.01677325]
[1762533745150,0.005,3314.9,3314.8,3.65657325]
[1762533745354,0.005,3314.9,3314.8,4.80619261]
[1762533745546,0.005,3314.9,3314.8,4.77602488]
[1762533745947,0.005,3314.9,3314.8,4.80619261]
[1762533746394,0.005,3314.9,3314.8,4.77602488]
[1762533746563,0.005,3314.9,3314.4,0.4521]
[1762533746888,0.005,3314.9,3314.8,30.0]
[1762533747086,3.02168225,3314.9,3314.8,30.0]
[1762533747290,2.52411557,3314.9,3314.8,30.0]
[1762533747698,3.20558225,3314.9,3314.8,30.0]
[1762533747903,4.5638905,3314.9,3314.8,30.0]
[1762533748101,3.94168225,3314.9,3314.8,30.0]
[1762533748697,3.65878225,3314.9,3314.8,30.0]
[1762533749001,4.34718625,3314.9,3314.8,30.0]
[1762533749204,5.10618513,3314.9,3314.8,30.0]
[1762533749401,5.50657046,3314.9,3314.8,22.34777241]
[1762533749699,6.36616668,3314.9,3314.8,22.34777241]
[1762533749999,5.96578135,3314.9,3314.8,22.34777241]
[1762533750159,4.82328513,3314.9,3314.8,22.34777241]
[1762533750358,5.10618513,3314.9,3314.8,22.34777241]
[1762533750763,4.82328513,3314.9,3314.8,22.34777241]
[1762533751190,3.77568113,3314.9,3314.8,22.34777241]
[1762533751502,3.77762043,3314.9,3314.8,22.34777241]
[1762533752302,0.76093818,3314.9,3314.8,22.34777241]
[1762533752465,3.77762043,3314.9,3314.8,22.34777241]
[1762533753494,3.01668225,3314.9,3314.8,22.34777241]
[1762533753867,3.01665373,3315.0,3314.8,22.34777241]
[1762533754068,3.01656569,3315.1,3314.8,24.58254965]
[1762533754285,3.01644323,3315.2,3314.8,25.06494965]
[1762533754458,3.01828572,3315.4,3314.8,25.06494965]
[1762533754662,3.01829602,3315.4,3315.1,0.1966]
[1762533754859,0.002,3315.4,3315.1,0.1966]
[1762533755066,3.01824031,3315.4,3315.1,0.1966]
[1762533755275,3.01824031,3315.4,3314.8,25.84694556]
[1762533755276,0.2457,3315.2,3314.8,22.34777241]
[1762533755487,3.01829402,3315.4,3314.8,22.34777241]
[1762533755488,3.01650025,3315.1,3314.8,22.34777241]
[1762533755687,3.0164733,3315.2,3314.8,22.34777241]
[1762533755891,0.002,3315.4,3314.9,0.4824]
[1762533756090,0.002,3315.4,3314.8,24.58254965]
[1762533756299,0.002,3315.4,3314.8,22.34777241]
[1762533756490,3.01631828,3315.3,3314.8,22.34777241]
[1762533756707,3.01644099,3315.2,3314.8,22.34777241]
[1762533756907,0.002,3315.4,3315.0,3.01651696]
[1762533757207,0.002,3315.4,3314.9,3.01667842]
[1762533757508,0.4927,3315.4,3315.2,0.50143086]
[1762533757707,3.01631828,3315.3,3315.2,0.50143086]
[1762533758006,0.002,3315.4,3315.3,0.9798]
[1762533758304,0.002,3315.4,3315.3,3.99611828]
[1762533758490,0.002,3315.4,3315.3,4.74752217]
[1762533758693,0.002,3315.4,3315.3,0.75140389]
[1762533758896,0.002,3315.4,3315.3,0.9798]
[1762533759111,0.002,3315.4,3315.2,0.50143086]
[1762533759612,0.002,3315.4,3315.2,0.49917324]
[1762533759613,3.26151828,3315.3,3315.2,0.49917324]
[1762533759816,5.41493428,3315.3,3315.2,0.49917324]
[1762533760113,1.259712,3315.3,3315.2,0.49917324]
[1762533760302,4.27603028,3315.3,3315.2,0.49917324]
[1762533760613,4.53753028,3315.3,3315.2,0.49917324]
[1762533760810,1.259712,3315.3,3315.2,0.49917324]
[1762533761011,4.27603028,3315.3,3315.2,0.49917324]
[1762533761195,0.002,3315.4,3315.2,1.42057324]
[1762533761398,0.002,3315.4,3315.3,0.454]
[1762533761601,3.01809921,3315.6,3315.4,0.49718409]
[1762533761980,0.002,3315.6,3315.4,0.49718409]
[1762533762376,3.01805665,3315.6,3315.4,0.49718409]
[1762533762573,3.48113632,3315.5,3315.4,0.49718409]
[1762533762976,3.01613632,3315.5,3315.4,0.49718409]
[1762533763201,3.75283632,3315.5,3315.4,0.49718409]
[1762533763415,3.01613632,3315.5,3315.4,0.49718409]
[1762533763601,3.01634179,3315.3,3315.2,0.49758994]
[1762533763913,4.27584832,3315.5,3315.2,0.49758994]
[1762533764116,0.002,3315.6,3315.2,0.49758994]
[1762533764303,3.01631828,3315.3,3315.2,0.49758994]
[1762533764501,3.01624801,3315.4,3315.2,0.49758994]
[1762533764880,0.002,3315.6,3315.2,0.49758994]
[1762533765222,0.002,3315.6,3315.5,0.454]
[1762533765390,0.002,3315.6,3315.5,0.85077303]
[1762533765720,0.002,3315.8,3315.6,0.4965616]
[1762533765880,0.002,3315.8,3315.7,0.454]
[1762533766075,0.002,3315.8,3315.7,3.46995439]
[1762533766343,0.002,3315.8,3315.7,0.9214]
[1762533766624,0.002,3315.8,3315.7,3.93735439]
[1762533766929,0.002,3315.8,3315.6,0.4965616]
[1762533767278,0.002,3315.8,3315.6,0.9639616]
[1762533767521,0.002,3315.8,3315.6,0.4965616]
[1762533767700,0.002,3315.8,3315.5,0.49796341]
[1762533767908,0.002,3315.8,3315.5,0.96536341]
[1762533768081,0.002,3315.8,3315.5,3.98143216]
[1762533768476,0.002,3315.8,3315.5,3.98147152]
[1762533768781,0.002,3315.8,3315.7,3.46995439]
[1762533769112,0.002,3315.8,3315.6,0.86554715]
[1762533769113,0.002,3315.8,3315.6,0.39814715]
[1762533769311,0.002,3315.8,3315.5,0.49796341]
[1762533769518,0.002,3315.8,3315.7,0.454]
[1762533770010,0.005,3315.9,3315.8,0.49686279]
[1762533770440,0.005,3315.9,3315.8,4.43412623]
[1762533771906,0.002,3316.1,3316.0,3.01568154]
[1762533772136,0.002,3316.1,3316.0,4.21429243]
[1762533772339,0.002,3316.1,3316.0,4.68169243]
[1762533773208,0.002,3316.1,3316.0,1.66601089]
[1762533773423,0.002,3316.1,3316.0,0.9214]
[1762533773751,0.002,3316.1,3316.0,3.93708154]
[1762533773917,0.002,3316.2,3316.1,0.49778551]
[1762533774245,0.0012,3316.2,3316.1,0.49778551]
[1762533774447,0.0012,3316.2,3316.1,0.52794141]
[1762533774662,0.0012,3316.2,3316.1,0.49778551]
[1762533776012,0.0012,3316.2,3316.0,0.49812955]
[1762533776211,3.0155906,3316.1,3316.0,0.49812955]
[1762533776424,0.0012,3316.2,3316.0,0.49812955]
[1762533776631,3.0155906,3316.1,3316.0,0.49812955]
[1762533777153,0.0012,3316.2,3316.0,0.95212955]
[1762533777314,0.0012,3316.2,3316.0,0.49812955]
[1762533777315,3.01675414,3316.2,3316.0,0.49812955]
[1762533777514,3.0155906,3316.1,3316.0,0.49812955]
[1762533778086,0.0012,3316.2,3315.2,0.4674]
[1762533778389,1.260912,3316.2,3315.2,0.4674]
[1762533778552,0.0012,3316.2,3315.6,3.01597425]
[1762533778881,0.0012,3316.2,3315.7,0.30159743]
[1762533779080,0.0012,3316.2,3315.2,3.483787]
[1762533779380,3.01562667,3316.1,3315.3,3.01629729]
[1762533779594,0.0012,3316.2,3315.4,3.01616884]
[1762533779771,3.01569588,3316.0,3315.5,0.34835688]
[1762533779952,3.01569588,3316.0,3315.5,3.36447876]
[1762533780153,3.01562229,3316.1,3315.8,0.49833075]
[1762533780447,4.27548449,3315.9,3315.8,0.49833075]
[1762533780647,5.14598849,3315.9,3315.8,0.49833075]
[1762533780958,6.67483431,3315.9,3315.8,0.49833075]
[1762533781160,7.43232879,3315.9,3315.8,0.49833075]
[1762533781348,0.405504,3315.7,3314.9,0.001]
[1762533781569,4.28000325,3315.0,3314.9,0.001]
[1762533781766,1.263412,3315.0,3314.9,0.001]
[1762533781966,1.259712,3315.0,3314.9,0.001]
[1762533782150,1.615612,3315.0,3314.9,0.49890721]
[1762533782355,0.4973,3315.0,3314.9,0.49890721]
[1762533782649,5.05642407,3314.9,3314.5,0.001]
[1762533782849,4.88089825,3314.9,3314.5,0.001]
[1762533783074,5.37539825,3314.9,3314.5,0.001]
[1762533783284,6.5891222,3314.9,3314.5,0.001]
[1762533783591,6.99692419,3314.9,3314.5,0.001]
[1762533783899,6.21459638,3314.9,3314.5,0.001]
[1762533784085,5.37539825,3314.9,3314.5,0.001]
[1762533784888,5.74992407,3314.9,3314.5,0.001]
[1762533785096,4.68217128,3314.6,3314.5,0.001]
[1762533785314,5.79983843,3314.6,3314.5,0.001]
[1762533785494,5.94477327,3314.6,3314.5,0.001]
[1762533785692,6.8409362,3314.6,3314.5,0.001]
[1762533785906,7.19050136,3314.6,3314.5,0.001]
[1762533786304,6.8409362,3314.6,3314.5,0.001]
[1762533786694,2.485516,3314.6,3314.5,0.001]
[1762533786895,0.1957,3314.9,3314.5,0.001]
[1762533786896,3.21246016,3314.9,3314.5,0.001]
[1762533787109,3.01695528,3314.6,3314.5,0.001]
[1762533787486,3.83895528,3314.6,3314.5,0.001]
[1762533787683,6.18975231,3314.6,3314.5,0.001]
[1762533787878,6.6320543,3314.6,3314.5,0.001]
[1762533788833,6.16492408,3314.6,3314.5,0.001]
[1762533789130,6.60722607,3314.6,3314.5,0.001]
[1762533789517,6.16492408,3314.6,3314.5,0.001]
[1762533790137,6.60722607,3314.6,3314.5,0.001]
[1762533790290,6.16492408,3314.6,3314.5,0.001]
[1762533790990,6.60722607,3314.6,3314.5,0.001]
[1762533791328,6.16492408,3314.6,3314.5,0.001]
[1762533791700,6.60722607,3314.6,3314.5,0.001]
[1762533791898,6.16492408,3314.6,3314.5,0.001]
[1762533792230,4.58093905,3314.6,3314.5,0.001]
[1762533792756,4.98644305,3314.6,3314.5,0.001]
[1762533793344,3.72673105,3314.6,3314.5,0.001]
[1762533793637,3.01691797,3314.7,3314.5,0.001]
[1762533793949,4.27658762,3314.7,3314.5,0.4513]
[1762533794442,0.4945,3315.4,3314.6,0.4503]
[1762533794742,3.01695528,3314.6,3314.5,0.001]